lending/lending_fUSD_20240507
["ID","MTS","AMOUNT","RATE_DAILY","PERIOD"]
[326526870,1715047838560,-168.83648179,0.000129,2]
[326526871,1715047838569,-156.36111404,0.000129,2]
[326526872,1715047838579,-19651.9,0.000129,2]
[326526873,1715047838589,-302.5,0.000129,2]
[326526874,1715047838598,-8849.32,0.000129,2]
[326526875,1715047838607,-150.99,0.000129,2]
[326526876,1715047838616,-595.59,0.000129,2]
[326526877,1715047838626,-201.63712947,0.000129,2]
[326526878,1715047838635,-150.0,0.000129,2]
[326526879,1715047838645,-912.31,0.000129,2]
[326526880,1715047838654,-181.81005196,0.0001297,2]
[326526881,1715047838663,-181.81005196,0.0001297,2]
[326526882,1715047838674,-150.69,0.0001297,2]
[326526883,1715047838683,-150.69,0.0001297,2]
[326526884,1715047838695,-150.69,0.0001297,2]
[326526885,1715047838713,-150.69,0.0001297,2]
[326526886,1715047838725,-150.69,0.0001297,2]
[326526887,1715047838736,-150.69,0.0001297,2]
[326526888,1715047838747,-150.69,0.0001297,2]
[326526889,1715047838756,-150.69,0.0001297,2]
[326526890,1715047838765,-150.69,0.0001297,2]
[326526891,1715047838774,-294.86126015,0.00012973,2]
[326526892,1715047838784,-399.01,0.00012974,2]
[326526893,1715047838794,-499.99,0.00012974,2]
[326526894,1715047838803,-161979.62689551,0.0001298,2]
[326526895,1715047838815,-172281.25938228,0.0001298,2]
[326526896,1715047838826,-4100.0,0.0001298,2]
[326526897,1715047838838,-836.74867698,0.0001298,2]
[326526898,1715047838849,-500.05224,0.0001298,2]
[326526899,1715047838862,-417.03328045,0.0001298,2]
[326526900,1715047838895,-3046.86920573,0.0001298,2]
[326526901,1715047838909,-500.0,0.0001298,2]
[326526902,1715047838920,-511.34363397,0.0001298,2]
[326526903,1715047838932,-271.2999999,0.0001298,2]
[326526921,1715047839431,-3081.79999998,0.0001298,2]
[326526922,1715047839442,-361.675,0.0001298,2]
[326526923,1715047839454,-1023.5008851,0.0001298,2]
[326526924,1715047839465,-358.48667185,0.0001298,2]
[326526925,1715047839511,-261.44223417,0.0001298,2]
[326526928,1715047841803,-439.015,0.0001298,2]
[326526930,1715047841817,-1058.76606186,0.0001298,2]
[326526931,1715047841834,-393.54732896,0.0001298,2]
[326526932,1715047841850,-1343.27671665,0.0001298,2]
[326526962,1715047847154,-571.74712751,0.0001289,2]
[326526964,1715047847165,-912.31,0.000129,2]
[326526967,1715047847177,-890194.30874387,0.0001298,2]
[326526983,1715047848187,-3945.70201799,0.0001298,2]
[326526996,1715047850042,-1565.61122037,0.0001298,2]
[326527008,1715049032984,-304.46,0.00011764,2]
[326527011,1715049032997,-206.5,0.00011813,2]
[326527013,1715049033010,-150.72277074,0.00011845,2]
[326527016,1715049033027,-1578.55756815,0.00011845,2]
[326527019,1715049033043,-4562.00117892,0.00011845,2]
[326527023,1715049033057,-299.99,0.00011845,2]
[326527027,1715049033072,-3041.65688029,0.00011845,2]
[326527031,1715049033087,-613.58349975,0.00011845,2]
[326527034,1715049033101,-2970.45636603,0.00011845,2]
[326527036,1715049033115,-482.99531256,0.00011845,2]
[326527048,1715049034081,-5768.52265459,0.00011845,2]
[326527049,1715049034094,-462.57,0.00011846,2]
[326527050,1715049034106,-157.16991767,0.00011891,2]
[326527051,1715049034117,-319.2,0.00011897,2]
[326527052,1715049034130,-207.3,0.00011935,2]
[326527053,1715049034144,-400.0,0.00011991,2]
[326527054,1715049034156,-171.08,0.00011992,2]
[326527055,1715049034167,-409.72269512,0.00012,2]
[326527056,1715049034178,-1000.0,0.00012001,2]
[326527057,1715049034190,-499.99,0.00012002,2]
[326527058,1715049034202,-1000.0,0.00012181,2]
[326527059,1715049034214,-206.827974,0.00012326,2]
[326527060,1715049034228,-842.7605357,0.00012326,2]
[326527061,1715049034240,-880.12375878,0.00012328,2]
[326527062,1715049034255,-257.69726089,0.00012328,2]
[326527066,1715049038482,-10979.11373173,0.00012328,2]
[326527067,1715049038492,-764.82458649,0.00012329,2]
[326527068,1715049038501,-3186.43468467,0.00012329,2]
[326527069,1715049038511,-150.99,0.00012329,2]
[326527070,1715049038521,-155.99273846,0.00012718,2]
[326527071,1715049038531,-150.0,0.000128,2]
[326527072,1715049038541,-912.31,0.000128,2]
[326527073,1715049038552,-150.0,0.000128,2]
[326527074,1715049038562,-912.31,0.000128,2]
[326527075,1715049038571,-150.0,0.000128,2]
[326527076,1715049038581,-912.31,0.000128,2]
[326527077,1715049038590,-1824.62,0.000128,2]
[326527078,1715049038599,-912.31,0.000128,2]
[326527079,1715049038609,-195.23711859,0.00012847,2]
[326527080,1715049038618,-201.28318232,0.00012848,2]
[326527081,1715049038627,-1662.1507,0.00012865,2]
[326527082,1715049038637,-1000.0,0.00012865,2]
[326527083,1715049038646,-2500.0,0.00012865,2]
[326527084,1715049038656,-1338.4724,0.0001288,2]
[326527085,1715049038665,-1211.7634,0.0001288,2]
[326527086,1715049038675,-993.18854492,0.0001288,2]
[326527087,1715049038684,-156.36111403,0.0001288,2]
[326527088,1715049038694,-3418.79074259,0.000129,2]
[326527089,1715049038703,-960.15407856,0.000129,2]
[326527090,1715049038713,-179.53580046,0.000129,2]
[326527091,1715049038723,-242.99827029,0.000129,2]
[326527092,1715049038732,-294.86126015,0.000129,2]
[326527093,1715049038741,-198.48727722,0.000129,2]
[326527094,1715049038751,-191.21,0.00012955,2]
[326527095,1715049038760,-4732.06514365,0.00012964,2]
[326527096,1715049038770,-193211.02657728,0.00012965,2]
[326527097,1715049038779,-4092.16575841,0.00012966,2]
[326527098,1715049038789,-191.21,0.0001297,2]
[326527099,1715049038800,-191.21,0.0001297,2]
[326527100,1715049038809,-155.32585035,0.00012978,2]
[326527101,1715049038832,-372.52009946,0.00012978,2]
[326527102,1715049038842,-686.92795817,0.00012978,2]
[326527103,1715049038851,-859.71187139,0.00012978,2]
[326527104,1715049038861,-449.53723821,0.00012978,2]
[326527105,1715049038871,-155.0,0.00012978,2]
[326527106,1715049038881,-204.39495653,0.00012978,2]
[326527107,1715049038890,-297.34402032,0.00012978,2]
[326527108,1715049038900,-180.56278999,0.00012978,2]
[326527109,1715049038909,-202.42159184,0.00012978,2]
[326527110,1715049038919,-5583.90696506,0.00012978,2]
[326527111,1715049038928,-1220.32537689,0.00012978,2]
[326527112,1715049038938,-845.02135017,0.00012979,2]
[326527113,1715049038947,-286.15625633,0.00012979,2]
[326527114,1715049038958,-1310.21054157,0.00012979,3]
[326527115,1715049038968,-44515.94165127,0.0001298,2]
[326527116,1715049038980,-20918.17752498,0.0001298,2]
[326527124,1715049045745,-322.5028742,0.0001288,2]
[326527126,1715049045756,-294.86126015,0.00012954,2]
[326527127,1715049045766,-4456.24154293,0.0001298,2]
[326527128,1715049045777,-28265.22302614,0.0001298,2]
[326527129,1715049045790,-590.83887464,0.0001298,2]
[326527130,1715049046209,-891106.61874387,0.0001298,2]
[326527132,1715049046221,-2584.41731558,0.0001298,2]
[326527133,1715049046233,-485.27295591,0.0001298,2]
[326527193,1715050232842,-622.58613624,0.00011395,2]
[326527194,1715050232852,-155.0,0.00011396,2]
[326527195,1715050232862,-295.616007,0.00011397,2]
[326527197,1715050232872,-320.0,0.00011615,2]
[326527199,1715050232884,-200.0,0.00011649,2]
[326527201,1715050232894,-744.64,0.00011661,2]
[326527203,1715050232903,-452.20053449,0.000117,2]
[326527204,1715050232913,-23890.0,0.00011739,2]
[326527205,1715050232922,-171.08,0.00011739,2]
[326527206,1715050232931,-250.0,0.00011753,2]
[326527208,1715050232941,-169.35,0.00011925,2]
[326527210,1715050232961,-150.0,0.00011973,2]
[326527211,1715050232972,-150.99,0.00012,2]
[326527213,1715050232982,-409.72269512,0.00012,2]
[326527214,1715050232992,-1000.0,0.00012026,2]
[326527215,1715050233002,-282.47,0.00012028,2]
[326527216,1715050233012,-499.99,0.00012029,2]
[326527217,1715050233021,-681.73,0.00012258,2]
[326527218,1715050233031,-1306.96388072,0.00012329,2]
[326527219,1715050233042,-977.79567631,0.00012329,2]
[326527220,1715050233052,-1667.97123149,0.00012329,2]
[326527221,1715050233062,-526.04401793,0.0001233,7]
[326527222,1715050233072,-3499.0404575,0.00012717,2]
[326527223,1715050233083,-1560.96410363,0.00012719,2]
[326527224,1715050233092,-6563.0519,0.0001278,2]
[326527225,1715050233103,-1000.0,0.0001278,2]
[326527226,1715050233113,-2500.0,0.0001278,2]
[326527227,1715050233123,-775.92586293,0.000128,2]
[326527228,1715050233132,-304.26766684,0.00012848,2]
[326527229,1715050233143,-304.3796,0.00012865,2]
[326527230,1715050233154,-2069.6125,0.00012865,2]
[326527231,1715050233164,-781.5528,0.00012865,2]
[326527232,1715050233174,-211.12404217,0.00012879,2]
[326527233,1715050233184,-245000.0,0.0001288,2]
[326527234,1715050233194,-933.17799124,0.0001288,2]
[326527235,1715050233203,-26030.943,0.0001288,2]
[326527236,1715050233213,-172.39377149,0.0001288,2]
[326527237,1715050233223,-183.58275981,0.0001288,2]
[326527238,1715050233233,-184.67580973,0.0001288,2]
[326527239,1715050233243,-322.5028742,0.0001288,2]
[326527240,1715050233253,-155.0,0.000129,2]
[326527241,1715050233263,-640.10271904,0.000129,2]
[326527242,1715050233273,-170.36,0.00012967,2]
[326527243,1715050233282,-160.68292261,0.0001297,2]
[326527244,1715050233292,-365.35908998,0.00012978,2]
[326527245,1715050233302,-17476.79391696,0.00012978,2]
[326527246,1715050233312,-51395.4664242,0.0001298,2]
[326527258,1715050238633,-7090.17569065,0.0001298,2]
[326527259,1715050238645,-326.6444601,0.0001298,2]
[326527263,1715050242931,-733.83590718,0.0001298,2]
[326527264,1715050244046,-58095.97327734,0.0001298,2]
[326527270,1715050244057,-203025.34608889,0.0001298,2]
[326527273,1715050244069,-682041.84117778,0.0001298,2]
[326527277,1715050244079,-155.36547426,0.0001298,2]
[326527279,1715050244088,-11848.2760948,0.0001298,2]
[326527281,1715050244098,-2539.51601,0.0001298,2]
[326527283,1715050244108,-429.9185653,0.00012992,2]
[326527285,1715050244118,-1785.9202864,0.00012997,2]
[326527286,1715050244128,-247.20768047,0.00012997,2]
[326527287,1715050244138,-155.89632492,0.00012998,2]
[326527288,1715050244148,-376.10041449,0.00012998,2]
[326527289,1715050244158,-1867.36030059,0.00012998,2]
[326527290,1715050244168,-1512.76334421,0.00012998,2]
[326527291,1715050244178,-344.91904042,0.00012998,2]
[326527292,1715050244188,-785.74885426,0.00012998,2]
[326527293,1715050244198,-209.34128345,0.00012998,2]
[326527294,1715050244207,-1269.32699284,0.00012999,2]
[326527295,1715050244217,-90509.1209631,0.00013,2]
[326527296,1715050244228,-28135.39612562,0.00013,2]
[326527312,1715050246573,-409.72269512,0.00012979,2]
[326527315,1715050246583,-1010.69069253,0.00013,2]
[326527319,1715050246599,-281.915,0.00013,2]
[326527320,1715050246611,-410.15274604,0.00013,2]
[326527325,1715051433656,-443.65691822,0.00012777,2]
[326527326,1715051433671,-178.92921802,0.00012777,2]
[326527327,1715051433684,-537.66466261,0.00012778,2]
[326527328,1715051433696,-2657.0803135,0.00012778,2]
[326527329,1715051433709,-2516.62508603,0.00012778,2]
[326527330,1715051433722,-3883.37491397,0.00012779,2]
[326527336,1715051441689,-401.1233,0.00012779,2]
[326527338,1715051441702,-400.0,0.00012779,2]
[326527341,1715051446581,-430.71988065,0.00012779,2]
[326527354,1715051448263,-428.73516617,0.00012779,2]
[326527357,1715051448275,-2529.62571452,0.00012779,2]
[326527360,1715051448284,-3725.07428548,0.0001278,2]
[326527364,1715051448295,-601.93593229,0.0001278,2]
[326527368,1715051448306,-409.89141,0.0001278,2]
[326527371,1715051448317,-28574.7589426,0.0001278,2]
[326527376,1715051449154,-892.03217045,0.0001278,2]
[326527378,1715051449166,-327.09675424,0.0001278,2]
[326527379,1715051449177,-3432.8568521,0.0001278,2]
[326527380,1715051449188,-500.0,0.0001278,2]
[326527381,1715051449199,-499.21105787,0.0001278,2]
[326527385,1715051507004,-2661.40051513,0.00012649,2]
[326527386,1715051507028,-622.58613624,0.00012711,2]
[326527387,1715051507050,-3426.14378131,0.00012712,2]
[326527388,1715051507074,-784.63029872,0.00012724,2]
[326527389,1715051507095,-3594.2392686,0.00012778,2]
[326527390,1715051616730,5066.03,0.00023,30]
[326527415,1715052635360,-547.92392022,0.00010222,2]
[326527417,1715052635370,-150.0,0.00011396,2]
[326527419,1715052635380,-2491.91115914,0.00011397,2]
[326527422,1715052635392,-712.8,0.00011397,2]
[326527439,1715052640882,-1592.358,0.00011397,2]
[326527440,1715052640894,-1723.49402903,0.00011397,2]
[326527441,1715052640905,-17369.43681183,0.00011397,2]
[326527442,1715052640919,-250.0,0.0001142,2]
[326527443,1715052640929,-243.56,0.00011432,2]
[326527444,1715052640938,-150.0,0.00011474,2]
[326527445,1715052640947,-164.28,0.00011811,2]
[326527446,1715052640956,-325.25,0.00011814,2]
[326527447,1715052640966,-150.99,0.00011814,2]
[326527448,1715052640975,-499.99,0.00011814,2]
[326527449,1715052640985,-150.99,0.00011814,2]
[326527450,1715052640995,-399.08,0.00011814,2]
[326527451,1715052641006,-1000.0,0.00011851,2]
[326527452,1715052641016,-164.28,0.00011888,2]
[326527453,1715052641027,-164.28,0.00011965,2]
[326527454,1715052641037,-164.28,0.00012042,2]
[326527455,1715052641051,-164.28,0.00012119,2]
[326527456,1715052641061,-164.28,0.00012196,2]
[326527457,1715052641070,-164.28,0.00012273,2]
[326527458,1715052641081,-164.28,0.0001235,2]
[326527459,1715052641091,-299.99,0.00012405,2]
[326527460,1715052641101,-862.94562231,0.00012409,2]
[326527461,1715052641110,-164.28,0.00012427,2]
[326527462,1715052641121,-210.0,0.00012535,2]
[326527463,1715052641130,-1959.51156587,0.0001261,2]
[326527464,1715052641143,-477.28421966,0.0001261,2]
[326527465,1715052641154,-171.83,0.00012639,2]
[326527466,1715052641166,-500.0,0.000127,2]
[326527467,1715052641176,-2500.0,0.000127,2]
[326527468,1715052641185,-2121.45659278,0.000127,2]
[326527469,1715052641196,-5254.29259325,0.000127,2]
[326527470,1715052641207,-307.4454902,0.000127,2]
[326527471,1715052641221,-318.64482262,0.000127,2]
[326527472,1715052641233,-4152.35097492,0.000127,2]
[326527473,1715052641246,-1071.13652623,0.000127,2]
[326527474,1715052641257,-330.12037377,0.000127,2]
[326527475,1715052641269,-346.53332623,0.000127,2]
[326527476,1715052641280,-8014.2841899,0.000127,2]
[326527477,1715052641293,-3042.30000003,0.000127,2]
[326527502,1715052648761,-884.98381759,0.00012699,2]
[326527503,1715052648772,-130.1227774,0.00012699,2]
[326527504,1715052648782,-470.51862185,0.000127,2]
[326527505,1715052648798,-6302.66832,0.000127,2]
[326527520,1715052648981,-82170.22886822,0.000127,2]
[326527522,1715052648991,-1509.801,0.000127,2]
[326527524,1715052648999,-5289.00533509,0.00012777,2]
[326527526,1715052649008,-543.08202159,0.00012777,2]
[326527528,1715052649017,-6276.53606241,0.00012778,2]
[326527530,1715052649027,-1820.178,0.00012778,2]
[326527532,1715052649036,-180.77045203,0.00012779,2]
[326527534,1715052649049,-49470.46784052,0.00012779,2]
[326527536,1715052649058,-155.88224783,0.00012779,2]
[326527538,1715052649067,-549.54655195,0.0001278,2]
[326527540,1715052649077,-2796.27146,0.0001278,2]
[326527542,1715052649087,-165.0,0.0001279,2]
[326527545,1715052649096,-137271.7673,0.000128,2]
[326527547,1715052649105,-243.56,0.00012861,2]
[326527548,1715052649114,-155.0,0.00012898,2]
[326527549,1715052649126,-155.0,0.000129,2]
[326527550,1715052649137,-29030.240825,0.000129,2]
[326527551,1715052649147,-172.39377148,0.000129,2]
[326527552,1715052649159,-1022.28432029,0.000129,2]
[326527553,1715052649174,-7500.0,0.000129,2]
[326527554,1715052649183,-851.062175,0.000129,2]
[326527555,1715052649192,-323.75400239,0.000129,2]
[326527556,1715052649201,-231.92477434,0.000129,2]
[326527557,1715052649211,-172.37833331,0.000129,2]
[326527558,1715052649220,-184.67580972,0.000129,2]
[326527559,1715052649229,-2436.79578553,0.000129,2]
[326527560,1715052649238,-187.61627728,0.00012979,2]
[326527561,1715052649247,-165.0,0.0001299,2]
[326527562,1715052649257,-165.0,0.0001299,2]
[326527563,1715052649266,-165.0,0.0001299,2]
[326527564,1715052649275,-165.0,0.0001299,2]
[326527565,1715052649284,-165.0,0.0001299,2]
[326527566,1715052649293,-411.19933698,0.00012998,2]
[326527567,1715052649303,-1301.96489797,0.00012998,3]
[326527568,1715052649312,-1000.0,0.00012999,2]
[326527569,1715052649332,-10000.0,0.00012999,2]
[326527570,1715052649358,-208.61463565,0.00012999,2]
[326527571,1715052649369,-5648.2797368,0.00012999,2]
[326527572,1715052649379,-531.0,0.00013,2]
[326527573,1715052649390,-27856.71817874,0.00013,2]
[326527574,1715052649401,-452.52622233,0.00013,2]
[326527575,1715052649413,-6330.9,0.00013,2]
[326527576,1715052649537,-468.98001,0.00012699,2]
[326527578,1715052649547,-10291.01999,0.00013,2]
[326527579,1715052649558,-3853.91096472,0.00013,2]
[326527580,1715052649573,-630.0,0.00013,2]
[326527582,1715052649585,-3048.06643039,0.00013,2]
[326527584,1715052649597,-342.46667533,0.00013,2]
[326527618,1715052652493,-3.38494353,0.00013,2]
[326527619,1715052652505,-303.00000001,0.00013,2]
[326527620,1715052652517,-2551.32,0.00013,2]
[326527621,1715052652805,-18299.56187845,0.00013,2]
[326527622,1715052652818,-1039.14499997,0.00013,2]
[326527623,1715052652830,-268.27500828,0.00013,2]
[326527624,1715052652842,-6399.19999998,0.00013,2]
[326527630,1715053805227,2000.0,0.0001,2]
[326527631,1715053833027,-636.6456326,0.00011994,2]
[326527632,1715053833037,-267.89721336,0.00011995,2]
[326527633,1715053833046,-401.47759888,0.00011996,2]
[326527634,1715053835301,-1203.24453639,0.00011996,2]
[326527635,1715053835314,-30412.81148714,0.00011996,2]
[326527636,1715053835324,-168.28397749,0.00012097,2]
[326527637,1715053835333,-166.8,0.00012133,2]
[326527638,1715053835343,-855.1,0.00012197,2]
[326527639,1715053835352,-168.28397747,0.00012348,2]
[326527640,1715053835361,-160.51942902,0.00012599,2]
[326527641,1715053835370,-168.28397747,0.00012599,2]
[326527642,1715053835379,-1000.0,0.000126,2]
[326527643,1715053835389,-1643.2634,0.000126,2]
[326527644,1715053835400,-150.0,0.00012689,2]
[326527645,1715053835410,-25214.54758956,0.0001269,2]
[326527646,1715053835419,-1805.84165203,0.00012698,2]
[326527647,1715053835429,-7506.04567181,0.00012699,2]
[326527648,1715053835438,-39111.2713,0.000127,2]
[326527649,1715053835448,-100000.0,0.000127,2]
[326527650,1715053835460,-500.0,0.000127,2]
[326527651,1715053835470,-67099.18111574,0.000127,2]
[326527652,1715053835482,-936.36976432,0.000127,2]
[326527653,1715053835495,-1552.8314616,0.000127,2]
[326527654,1715053835506,-624.91528117,0.000127,2]
[326527655,1715053840529,-2447.50588293,0.000127,2]
[326527656,1715053840541,-3677.111732,0.000127,2]
[326527657,1715053840555,-3530.64173,0.000127,2]
[326527658,1715053840567,-1235.9041344,0.000127,2]
[326527670,1715053841062,-31687.8203023,0.000127,2]
[326527671,1715053841074,-654.00503123,0.000127,2]
[326527672,1715053841086,-923.35097994,0.000127,2]
[326527681,1715053843232,-497.07970226,0.000127,2]
[326527683,1715053843243,-7504.5439211,0.000127,2]
[326527687,1715053843255,-918.18164461,0.000127,2]
[326527690,1715053843267,-28111.27473643,0.000127,2]
[326527719,1715055034373,-7506.04567181,0.00011126,2]
[326527721,1715055034384,-2921.67970157,0.00011127,2]
[326527723,1715055034396,-14530.65438502,0.00011127,2]
[326527725,1715055034407,-1203.89443468,0.00011225,2]
[326527727,1715055034417,-267.89721336,0.00011226,2]
[326527729,1715055034427,-459.76493228,0.0001123,2]
[326527731,1715055034437,-150.0,0.0001123,2]
[326527733,1715055034447,-205.4,0.00011507,2]
[326527735,1715055034457,-547.82620871,0.00011599,2]
[326527737,1715055034469,-909.55296246,0.00011599,2]
[326527739,1715055034481,-7033.02179449,0.00011599,2]
[326527741,1715055034494,-6169.52551127,0.00011599,2]
[326527743,1715055034506,-2000.0,0.00011599,2]
[326527746,1715055034518,-1302.41834482,0.00011599,2]
[326527748,1715055034530,-5937.65517825,0.00011599,2]
[326527750,1715055034541,-600.24,0.00011618,2]
[326527752,1715055034551,-150.0,0.00011663,2]
[326527754,1715055034560,-170.12,0.00011699,2]
[326527756,1715055034571,-250.0,0.00011711,2]
[326527758,1715055034581,-166.8,0.00011714,2]
[326527760,1715055034594,-445.52435183,0.00011845,2]
[326527762,1715055034607,-424.02564817,0.00011845,2]
[326527764,1715055034617,-165.56,0.00011918,2]
[326527765,1715055034629,-499.99,0.00011918,2]
[326527766,1715055034639,-472.17,0.00011918,2]
[326527767,1715055034649,-182.67,0.0001203,2]
[326527768,1715055034659,-1000.0,0.00012073,2]
[326527769,1715055034669,-290.69,0.00012073,2]
[326527770,1715055034680,-3499.0404575,0.00012448,2]
[326527771,1715055034690,-180.02691137,0.000125,2]
[326527772,1715055034700,-210.317,0.000125,2]
[326527773,1715055034710,-595.75785806,0.00012598,2]
[326527774,1715055034724,-351.56071379,0.00012598,2]
[326527775,1715055034738,-392.97779973,0.00012598,2]
[326527776,1715055034751,-76.19220027,0.00012599,2]
[326527777,1715055040061,-1062.45765383,0.00012599,2]
[326527779,1715055040075,-1095.47287702,0.00012599,2]
[326527781,1715055040085,-12.69352175,0.00012599,2]
[326527785,1715055040097,-420.43666373,0.00012599,2]
[326527787,1715055040110,-324.95664198,0.00012599,2]
[326527799,1715055041119,-760.39393941,0.00012599,2]
[326527800,1715055041130,-220.91703225,0.000126,2]
[326527801,1715055041141,-279.08296775,0.000126,2]
[326527802,1715055041151,-977.19523567,0.000126,2]
[326527803,1715055041162,-370.5341791,0.000126,2]
[326527804,1715055041174,-1580.384,0.000126,2]
[326527805,1715055041186,-2397.66318192,0.000126,2]
[326527806,1715055041197,-1646.41655617,0.000126,2]
[326527807,1715055041211,-2477.65544714,0.000126,2]
[326527808,1715055041222,-886.501519,0.000126,2]
[326527809,1715055041626,-517.11893293,0.000126,2]
[326527810,1715055041638,-2944.99999991,0.000126,2]
[326527811,1715055041649,-6353.04157031,0.000126,2]
[326527812,1715055041661,-277.74599058,0.000126,2]
[326527813,1715055041672,-899.20318369,0.000126,2]
[326527814,1715055041684,-2828.832935,0.000126,2]
[326527815,1715055041695,-2089.66046276,0.000126,2]
[326527821,1715055043115,-442.40018829,0.000126,2]
[326527825,1715055043131,-2518.85209956,0.000126,2]
[326527828,1715055043418,-967.37861202,0.000126,2]
[326527829,1715055043430,-3972.09929284,0.000126,2]
[326527830,1715055043443,-486.91192548,0.000126,2]
[326527831,1715055043456,-288.6102,0.000126,2]
[326527832,1715055043467,-2732.91582917,0.000126,2]
[326527833,1715055043478,-475.67259041,0.000126,2]
[326527834,1715055043489,-2063.79769676,0.000126,2]
[326527835,1715055044182,-796.75772232,0.000126,2]
[326527836,1715055044194,-507.459982,0.000126,2]
[326527838,1715055047642,-267.89721336,0.00012599,2]
[326527839,1715055047652,-8017.14495908,0.000126,2]
[326527840,1715055047923,-16959.0331764,0.000126,2]
[326527841,1715055047934,-458.09629476,0.000126,2]
[326527842,1715055047945,-2023.308,0.000126,2]
[326527843,1715055049548,-2092.38141213,0.000126,2]
[326527844,1715055049559,-660.69999998,0.000126,2]
[326527845,1715055049571,-2218.45898703,0.000126,2]
[326527846,1715055049582,-1145.62207892,0.000126,2]
[326527847,1715055049593,-10462.89910724,0.000126,2]
[326527848,1715055049604,-348.5255592,0.000126,2]
[326527849,1715055252350,159.08,9.621e-05,2]
[326527850,1715055299416,12294.46395605,9.621e-05,2]
[326527870,1715056236797,-267.89721336,9.618e-05,2]
[326527871,1715056236807,-152.95831362,9.619e-05,2]
[326527872,1715056236819,-850.28704862,9.619e-05,2]
[326527873,1715056236830,-386.83010206,9.62e-05,2]
[326527874,1715056236842,-1485.3825767,9.62e-05,2]
[326527875,1715056237202,-5633.83299305,9.62e-05,2]
[326527876,1715056237212,-7410.05553474,9.621e-05,2]
[326527877,1715056237223,-232.55,0.00011327,2]
[326527878,1715056237232,-250.0,0.00011331,2]
[326527879,1715056237242,-900.0,0.00011332,2]
[326527881,1715056237252,-606.6,0.00011333,2]
[326527883,1715056237262,-167.27,0.00011353,2]
[326527884,1715056237271,-23900.0,0.0001139,2]
[326527885,1715056237281,-150.99,0.0001139,2]
[326527886,1715056237290,-157.08,0.0001196,2]
[326527887,1715056237300,-157.08,0.00011965,2]
[326527888,1715056237310,-157.08,0.0001197,2]
[326527889,1715056237319,-157.08,0.00011975,2]
[326527890,1715056237328,-1205.17,0.00011975,2]
[326527891,1715056237338,-5562.55,0.00011975,2]
[326527892,1715056237348,-157.08,0.0001198,2]
[326527893,1715056237357,-19999.99,0.0001198,2]
[326527894,1715056237367,-8293.14,0.0001198,2]
[326527895,1715056237376,-157.08,0.00011985,2]
[326527896,1715056237385,-157.08,0.0001199,2]
[326527897,1715056237395,-157.08,0.00011995,2]
[326527898,1715056237404,-157.08,0.00012,2]
[326527899,1715056237413,-157.08,0.00012005,2]
[326527900,1715056237423,-157.08,0.0001201,2]
[326527901,1715056237432,-695.64,0.0001201,2]
[326527902,1715056237442,-157.08,0.00012014,2]
[326527903,1715056237451,-157.08,0.00012019,2]
[326527904,1715056237460,-552.35,0.000121,2]
[326527905,1715056237470,-929.18,0.000121,2]
[326527906,1715056237479,-1705.0,0.000123,2]
[326527907,1715056237489,-1000.0,0.000123,2]
[326527908,1715056237499,-1009.0,0.000123,2]
[326527909,1715056237509,-1013.0,0.000124,2]
[326527910,1715056237519,-1000.0,0.000124,2]
[326527911,1715056237529,-13090.47007136,0.0001258,2]
[326527912,1715056237538,-500.0,0.000126,2]
[326527913,1715056237547,-2366.22783,0.000126,2]
[326527914,1715056237556,-171.83,0.00012607,2]
[326527915,1715056237566,-2000.0,0.000127,2]
[326527916,1715056237576,-200.0,0.000127,2]
[326527917,1715056237585,-232.55,0.00012743,2]
[326527918,1715056237595,-900.0,0.00012749,2]
[326527919,1715056237605,-499.99,0.0001277,2]
[326527920,1715056237618,-1000.0,0.000128,2]
[326527921,1715056237627,-1444.7366,0.000128,2]